{"text_format":"2","workbook":"xlsx","n_sheets":1,"sheets":["Planilha1"],"not_rendered":{"charts":0,"images":0,"macros":0,"external_links":2,"defined_names":29,"comments":0,"pivot_tables":0},"unopened":[],"bounds":{"document_bytes":16777216,"sheet_cells":100000,"run_cost":"one","rows_first":2000,"rows_last":500,"rows_between":2000,"halvings":0,"cell_chars":16384,"cell_head_chars":4096},"cells_cut":0,"cells_raw":0,"read":"whole","date_system":"1900"}

{"sheet":"Planilha1","index":0,"n_rows":68,"n_cols":14,"rows_kept":68,"cut":false,"hidden":false,"merged":[[1,0,1,9],[3,0,3,9],[15,0,15,8],[18,0,18,9],[28,0,28,8],[31,0,31,9],[41,0,41,8],[44,0,44,9],[57,0,57,8],[61,0,61,8],[62,0,62,8],[4,0,14,0],[19,0,26,0],[32,0,40,0],[45,0,56,0]]}
[]
["PLANILHA ORÇAMENTÁRIA"]
["GRUPO 1","ITEM","DESCRIÇÃO","CATMAT","UN","QT","VALOR POR ITEM","VALOR TOTAL","VALOR POR ITEM","VALOR TOTAL"]
["GRUPO 1 - KIT1 -  PANIFICAÇÃO"]
["GRUPO 1",1,"Freezer, tipo: horizontal, capacidade minIma de 500 litros, tipo portas: sólida, não tem sistema degelo: frost free, cor:branca, tensão alimentação: 110, 220 v, características adicionais: dupla ação (congelamento e refrig.) pintura epoxi, quantidade portas: 2 unidades. Garantia mínima de 1 ano.","BR0439305","UN",60,23987.3,359809.5,{"$f":"[2]freezer!R88","v":3956.68},{"$f":"ROUND(I5*F5,2)","v":237400.8},null,{"$f":"IF(H5=J5,\"\",\"xx\")","v":"xx"},4009.58,{"$f":"I5-M5","v":-52.9000000000001}]
[null,2,"Mesa de manipulação, preparação de alimentos, com tampo confecionado em inox – constituída em chapa de açõ inox tipo AISI - 304, nº 16 e com abas de 50 mm dobradas para baixo,  dimensões aproximadas de 2,00 x 0,70 x 0,85 m.Garantia mínima de 1 ano.","BR0477008","UN",60,46535.21,698028.15,{"$f":"[2]mesa!R38","v":2472.65},148359,null,{"$f":"IF(H6=J6,\"\",\"xx\")","v":"xx"},2112.33,360.32]
[null,3,"Liquidificador Industrial 08 L, copo Inox, motor com potência de 0,5cv ou superior. Garantia mínima de 1 ano.","BR272867","UN",30,null,null,{"$f":"[2]liquidificador!R38","v":1044.19},31325.7,null,null,1153.77,-109.58]
[null,4,"Batedeira industrial de 12 litros, tipo planetária, para massas, glacês, gelados, cremes, etc. Com recipiente em aço inox. Com três batedores. Bivolt. Seis ou mais velocidades. Motor de 1CV ou superior. Tensão de alimentação monofásica 220V, 60 Hz..Garantia mínima de 1 ano.","BR275207","UN",30,null,null,{"$f":"[2]batedeira!R38","v":3855.95},115678.5,null,null,3575.24,280.71]
[null,5,"Cilindro Elétrico – para sovar massa de pão de 35 cm. Carenagem em aço inoxidável.\nLaminadores em aço cromado. Motor 1/3 cv  220V. Garantia mínima de 12 meses","BR275470","UN",30,null,null,{"$f":"[2]cilindro!R38","v":6010.29},180308.7,null,null,10239.41,-4229.12]
[null,6,"Amassadeira para preparo de massas, capacidade 25 kg; cuba em aço inox; paredes em alumínio fundido; produção: 65 kg/h; potência 1 CV, velocidade: 50 RPM, pás montadas em mancais rolamentos, Tensão de alimentação monofasica 220V.Garantia mínima de 1 ano.","BR409930","UN",30,null,null,{"$f":"[2]amassadeira!R38","v":9428.63},282858.9,null,null,5506,3922.63]
[null,7,"Divisora de coluna massa alimentícia, material estrutura: aço carbono fundido ou aço Inox. Material da alavanca, aço carbono, inox ou ferro fundido. No mínimo 30 divisões por operação. Garantia mínima de 1 ano.","BR304514","UN",30,null,null,{"$f":"[2]divisora!R58","v":2865.33},85959.9,null,null,1873,992.33]
[null,8,"Modeladora massa panificação, tipo: monofásica, potência motor: 1/4 CV, tensão alimentação: 220V, 60Hz, capacidade produção: 750 a 1.000 pães de 50 g.Garantia mínima de 1 ano.","BR445678","UN",30,null,null,{"$f":"[2]modeladora!R68","v":6772.17},203165.1,null,null,5450,1322.17]
[null,9,"Balança Eletrônica – Com capacidade de 20 kg; Dimensões mínimas aproximadas da balança: 33 x 34 x 11,5 cm. Medidas da bandeja: 34,5x23 cm. Precisão: 1/3000 F.S. Entrada AC 110/220 (bivolt). Garantia mínima de 1 ano.","BR455649","UN",30,null,null,{"$f":"'[2]balança 20'!R38","v":781.99},23459.7,null,null,854,-72.01]
[null,10,"Armário Estufa para panificação – com esteiras, material em epóxi. Com capacidade para 20\nassadeiras com telas de alumínio perfuradas.  Espaçamento de 9 cm entre as assadeiras. Medidas externasminima: 58  cm frente, 70 cm profundidade, 1,93 de altura. Garantia mínima de 12 meses. Garantia mínima de 1 ano.","BR474332","UN",30,null,null,{"$f":"[2]armário!R38","v":2557.39},76721.7,null,null,2799,-241.61]
[null,11,"Forno Industrial para Panificação a gás – Forno turbo gás 10 esteiras. Garantia mínima de 12 meses.","BR258390","UN",30,null,null,{"$f":"'[2]forno panif'!R38","v":8871.76},266152.8,null,null,9564,-692.24]
["TOTAL GRUPO 1",{"$nulls":8},{"$f":"SUM(J5:J15)","v":1651390.8}]
[{"$nulls":13},{"$f":"SUM(N5:N15)","v":1480.7}]
["GRUPO 2","ITEM","DESCRIÇÃO","CATMAT","UN","QT",null,null,"VALOR POR ITEM","VALOR TOTAL"]
["GRUPO 2 - KIT2 - COZINHA INDUSTRIAL"]
["GRUPO 2",1,"Freezer, tipo: horizontal, capacidade minIma de 500 litros, tipo portas: sólida, não tem sistema degelo: frost free, cor:branca, tensão alimentação: 110, 220 v, características adicionais: dupla ação (congelamento e refrig.) pintura epoxi, quantidade portas: 2 unidades. Garantia mínima de 1 ano.","BR0439305","UN",60,null,null,{"$f":"[2]freezer!R88","v":3956.68},{"$f":"F20*I20","v":237400.8}]
[null,2,"Mesa de manipulação, preparação de alimentos, com tampo confecionado em inox – constituída em chapa de açõ inox tipo AISI - 304, nº 16 e com abas de 50 mm dobradas para baixo, nas dimensões aproximadas de 2,00 x 0,70 x 0,85 m. Garantia mínima de 1 ano.","BR0477008","UN",60,null,null,{"$f":"[2]mesa!R38","v":2472.65},148359]
[null,3,"Liquidificador Industrial 08 L, copo Inox, motor com potência de 0,5cv ou superior. Garantia mínima de 1 ano.","BR272867","UN",30,null,null,{"$f":"[2]liquidificador!R38","v":1044.19},31325.7]
[null,12,"Fogão industrial de piso, alta pressão 6 bocas, grelhas e queimadores em ferro fundido, bandeja coletora de resíduos,.","BR600610","UN",30,null,null,{"$f":"[2]fogão!R88","v":2590.42},77712.6]
[null,16,"Forno industrial, duplo, a gás, queimador com sistema de gaveta, sistema de abertura de vidro tipo guilhotina, bandeja coletora de residuo, termometro acoplado. Garantia mínima de 1 ano.","BR451451","UN",30,null,null,{"$f":"'[2]forno dup'!R38","v":3251.45},97543.5]
[null,13,"Fritadeira Elétrica Industrial - capacidade 15 litros óleo / 03 litros água; fabricada em aço inox, potência máxima 5,5 Kw, dois cestos. 220V. Garantia mínima de 12 meses","BR457748","UN",30,null,null,{"$f":"[2]fritadeira!R38","v":1897.52},56925.6]
[null,14,"Serra-Fita de bancada, Residencial, com Picador (moedor), Inox, proteção deslizante da área de corte da lâmina, motor com potência de 1/2 cv, fita de 170 cm - 220V. Garantia mínima de 1 ano.","BR442377","UN",30,null,null,{"$f":"[2]serra!R38","v":2988.27},89648.1]
[null,15,"Balcão térmico Self Service, tipo buffet térmico, com 10 cubas, confeccionado em aço inox. Com termostato. 220V. Garantia minima de 12 meses","BR451566","UN",30,null,null,{"$f":"[2]buffet!R38","v":3597.43},107922.9]
[]
["TOTAL GRUPO 2",{"$nulls":8},{"$f":"SUM(J20:J27)","v":846838.2}]
[]
["GRUPO 3","ITEM","DESCRIÇÃO","CATMAT","UN","QT",null,null,"VALOR POR ITEM","VALOR TOTAL"]
["GRUPO 3 - KIT3 - PROCESSAMENTO DE FRUTOS"]
["GRUPO 3",1,"Freezer, tipo: horizontal, capacidade minIma de 500 litros, tipo portas: sólida, não tem sistema degelo: frost free, cor:branca, tensão alimentação: 110, 220 v, características adicionais: dupla ação (congelamento e refrig.) pintura epoxi, quantidade portas: 2 unidades. Garantia mínima de 1 ano, assistência técnica mínima de 1 ano.","BR0439305","UN",60,null,null,{"$f":"[2]freezer!R88","v":3956.68},{"$f":"F33*I33","v":237400.8}]
[null,2,"Mesa de manipulação, preparação de alimentos, com tampo confecionado em inox – constituída em chapa de açõ inox tipo AISI - 304, nº 16 e com abas de 50 mm dobradas para baixo, nas dimensões aproximadas de 2,00 x 0,70 x 0,85 m. Garantia mínima de 1 ano.","BR0477008","UN",60,null,null,{"$f":"[2]mesa!R38","v":2472.65},148359]
[null,3,"Liquidificador Industrial 08 L, copo Inox, motor com potência de 0,5cv ou superior. Garantia mínima de 1 ano.","BR272867","UN",30,null,null,{"$f":"[2]liquidificador!R38","v":1044.19},31325.7]
[null,11,"Forno industrial, duplo, a gás, queimador com sistema de gaveta, sistema de abertura de vidro tipo guilhotina, bandeja coletora de residuo, termometro acoplado.","BR258390","UN",30,null,null,{"$f":"'[2]forno dup'!R38","v":3251.45},97543.5]
[null,17,"Conjunto tanque em aço inox AISI 304, com capacidade para 180 litros, com cesto vazado com diâmetro 580mm x 600mm de altura. Garantia minima de 12 meses","BR319151","UN",30,null,null,{"$f":"'[2]tanque 190'!R38","v":3223.79},96713.7]
[null,18,"DESPOLPADEIRA FRUTAS, material aço inoxidáveL AISI 304,capacidade de produção minimo de 60 KG/H.  Garantia mínima de 1 ano.","BR0331435","UN",30,null,null,{"$f":"[2]despolpadeira!R38","v":3874.68},116240.4]
[null,13,"Fritadeira Elétrica Industrial - capacidade 15 litros óleo / 03 litros água; fabricada em aço inox, potência máxima 5,5 Kw, dois cestos. 220V. Garantia mínima de 12 meses","BR457748","UN",30,null,null,{"$f":"[2]fritadeira!R38","v":1897.52},56925.6]
[null,9,"Balança Eletrônica – Com capacidade de 20 kg; Dimensões mínimas da balança: 33 x 34 x 11,5 cm. Medidas da bandeja: 34,5x23 cm. Garantia mínima de 1 ano.","BR455649","UN",30,null,null,{"$f":"'[2]balança 20'!R38","v":781.99},23459.7]
[null,12,"Fogão industrial de piso, alta pressão 6 bocas, grelhas e queimadores em ferro fundido, bandeja coletora de resíduos,. Garantia mínima de 1 ano.","BR600610","UN",30,null,null,{"$f":"[2]fogão!R88","v":2590.42},77712.6]
["TOTAL GRUPO 3 ",{"$nulls":8},{"$f":"SUM(J33:J41)","v":885681}]
[]
["GRUPO 4","ITEM","DESCRIÇÃO","CATMAT","UN","QT",null,null,"VALOR POR ITEM","VALOR TOTAL"]
["GRUPO 4 - KIT4 - Agroindústria de Polpa de frutas"]
["GRUPO 4",19,"BALANÇA ELETRÔNICA, CAPACIDADE PESAGEM: 300 KG, Voltagem: 110/220 V,\ncaracteristicas adicionais: plataforma em aço carbono,prato removível, tipo digital, número digitos 6,dimensões aproximadas 60 x 60 CM. Garantia mínima de 1 ano.","BR0454433","UN",30,null,null,{"$f":"'[2]balança 300'!R88","v":1467.2},{"$f":"F46*I46","v":44016},null,null,1664.55,{"$f":"I46-M46","v":-197.35}]
[null,20,"BALANÇA ELETRÔNICA, CAPACIDADE PESAGEM:40 KG, bibolt, caracteristicas adicionais:divisão 5G, prato aço inox, bateria recarregável, tipo:digital. Garantia mínima de 1 ano.","BR0461228","UN",30,null,null,{"$f":"'[2]balança 40'!R38","v":852.22},25566.6,null,null,496.8,355.42]
[null,21,"LAVA BOTAS, manual  material: aço inox. Tipo sistema de calha para uma pessoa, aplicação: agroindústria. Garantia mínima de 1 ano.","BR0391377","UN",30,null,null,{"$f":"'[2]lava botas'!R38","v":2020.49},60614.7,null,null,1841.47,179.02]
[null,22,"Carro Cuba, estrutura em chapa Inox,  tipo carro cuba, em polietileno ou material superior, com capacidade minima de 190 Litros, com rodízio diametro de 5\", 4 sendo 2 com trava para estacionar, ou similiar, aplicação: transporte de carnes\nem açougues. características adicionais: dreno com valvula de esfera para escoamento de líquidos.  Garantia mínima de 1 ano.","BR0474330","UN",30,null,null,{"$f":"'[2]carro cuba'!R38","v":2462.13},73863.9,null,null,2566.47,-104.34]
[null,23,"BALDE, material plastico atóxico, capacidade min de 18L, caracteristicas: com tampa, aplicação armazenamento de alimentos. Garantia mínima de 1 ano.","BR0287670","UN",300,null,null,{"$f":"[2]balde!R38","v":35.64},10692,null,null,35.07,0.57]
[null,24,"CARRO CARGA, Material aço inox\nPLATAFORMA, Capacidade carga, min 150 KG,quantidade de rodizíos 4 un, (sendo 2 fixos e 2giratórios), aplicação: transporte de alimentos. Garantia mínima de 1 ano.","BR0347459","UN",30,null,null,{"$f":"'[2]carro carga'!R35","v":2300},69000,null,null,1215.19,1084.81]
[null,2,"MESA MANIPULAÇÃO / PREPARAÇÃO ALIMENTOS - Mesa em aço inox ASI-304  -dimensões min: 0,80 m altura, 1,80 m comprimento,0,70m largura. Garantia mínima de 1 ano.","BR0477008","UN",60,null,null,{"$f":"[2]mesa!R38","v":2472.65},148359,null,null,1450.36,1022.29]
[null,18,"DESPOLPADEIRA FRUTAS, material aço inoxidáve lAISI 304,capacidade de produção minimo de 60 KG/H (ou 60 litros/h.  Garantia mínima de 1 ano.","BR0331435","UN",30,null,null,{"$f":"[2]despolpadeira!R38","v":3874.68},116240.4,null,null,7191.49,-3316.81]
[null,25,"Envasadora semi automatica de liquidos e Pastosos, regulagem de 100 a 1000 mL - 1 bico,capacidade de armazenamento não inferior a 35 L, acionamento no pedal ou automático. Garantia mínima de 1 ano.","BR0480131","UN",30,null,null,{"$f":"[2]envasadora!R38","v":8632.91},258987.3,null,null,7010.58,1622.33]
[null,26,"Compressor de ar Compressor Profissional Monofásico bivolt (110/220v) compatível para uso na  envasadora de Líquidos. Garantia mínima de 1 ano.","BR0608477","UN",30,null,null,{"$f":"[2]compressor!R38","v":5062.85},151885.5,null,null,3105.17,1957.68]
[null,27,"MAQUINA SELADORA AUTOMÁTICA VERTICAL COM DATADOR. seladora continuada automatica de alta qualidade de selagem,podendo ser inúmeras embalagens com eficiencia e durabilidade. Painel com ajustes, simples e intuitivosnas regulagens de temperatura de selagem que vai de 0° ate 300°C. Garantia mínima de 1 ano.","BR0369041","UN",30,null,null,{"$f":"[2]seladora!R37","v":2997.05},89911.5,null,null,2999.23,-2.17999999999984]
[null,1,"Freezer, tipo: horizontal, capacidade min de 500 l,tipo portas: sólida, não tem sistema degelo: frost free, cor:branca, tensão alimentação: 220 v, características adicionais: dupla ação (congelamento e refrig.) pintura epoxi, quantidade portas: 2 unidades.Garantia mínima de 1 ano.","BR0439305","UN",60,null,null,{"$f":"[2]freezer!R88","v":3956.68},237400.8,null,null,3714.1,242.58]
["TOTAL GRUPO 4",{"$nulls":8},{"$f":"SUM(J46:J57)","v":1286537.7}]
[]
["ITEM","ITEM","DESCRIÇÃO","CATMAT","UN","QT",null,null,"VALOR POR ITEM","VALOR TOTAL"]
["ITEM",28,"Empacotadora seladora à vácuo – máquina de câmara, modelo de bancada, simples de mesa para embalamento a vácuo com barra mínima de 400 mm de comprimento com solda dupla (duas resistências de selagem). uas resistências de selagem) - 2 barras de selagem -; mesa com área útil de no mínimo 300 mm de comprimento e o acionamento de barra de selagem, de fácil limpeza e manutenção; munida com um painel digital e ajustes, como tempo e temperatura da selagem, tempo e pressão do vácuo, construída em aço inox AISI 304 que evita a oxidação; que atenda os requisitos rigorosos de higiene e durabilidade; provido de tampa de acrílico que possibilita melhor visualização do processo e uma  bomba de vácuo de no mínimo 20 m³/h; processo semi- automático (apenas a colocação e retirada do produto da câmara é manual). Tensão de alimentação monofasica 220V, 60 Hz. Garantia e assistência técnica por 12 meses.","BR463139","UN",22,null,null,{"$f":"[2]empacotadora!R38","v":14857.77},{"$f":"F61*I61","v":326870.94}]
["TOTAL DO ITEM ",{"$nulls":8},326870.94]
["TOTAL GERAL",{"$nulls":8},{"$f":"SUM(J58,J42,J29,J16,J61)","v":4997318.64}]
[]
[]
[{"$nulls":7},13975260.86]
[]
[{"$nulls":7},1436309.7]